bitfinex-derivatives/quotes_BTCF0:USTF0_20251216
["timestamp","ask_amount","ask_price","bid_price","bid_amount"]
[1765905965639,0.0114382,87445.0,87444.0,0.08602]
[1765905965833,0.3608,87454.0,87444.0,0.08602]
[1765905966034,0.3608,87454.0,87448.0,0.03239]
[1765905966035,0.18,87449.0,87448.0,0.03239]
[1765905966331,0.06233,87445.0,87441.0,0.3608]
[1765905966647,0.0114384,87444.0,87443.0,0.06532]
[1765905966838,0.04565602,87444.0,87443.0,0.06532]
[1765905967140,0.0114393,87437.0,87436.0,0.06532]
[1765905967331,0.0737693,87437.0,87436.0,0.06532]
[1765905967745,0.07597692,87437.0,87436.0,0.06532]
[1765905968140,0.25597692,87437.0,87436.0,0.03239]
[1765905968550,0.0434498,87433.0,87421.0,0.3608]
[1765905968755,0.0737698,87433.0,87432.0,0.08389]
[1765905969047,0.25597742,87433.0,87432.0,0.06532]
[1765905969645,0.25597742,87433.0,87432.0,0.03339]
[1765905970145,0.18220762,87433.0,87432.0,0.08489]
[1765905970737,0.21421762,87433.0,87432.0,0.08489]
[1765905971145,0.18220762,87433.0,87432.0,0.08489]
[1765905971640,0.24453762,87433.0,87432.0,0.08489]
[1765905972139,0.24453762,87433.0,87432.0,0.06632]
[1765905973544,0.18220762,87433.0,87432.0,0.06632]
[1765905973751,0.21421762,87433.0,87432.0,0.06632]
[1765905973944,0.24453762,87433.0,87432.0,0.06632]
[1765905974144,0.24453762,87433.0,87432.0,0.03339]
[1765905974647,0.24453762,87433.0,87432.0,0.06632]
[1765905974849,0.0737728,87410.0,87409.0,0.07335802]
[1765905975149,0.2537728,87410.0,87409.0,0.00803802]
[1765905975950,0.25698042,87410.0,87409.0,0.01203802]
[1765905977053,0.25798042,87410.0,87409.0,0.07735802]
[1765905977244,0.24653762,87410.0,87409.0,0.07735802]
[1765905977447,0.18420762,87410.0,87409.0,0.07735802]
[1765905977646,0.18320762,87410.0,87409.0,0.07335802]
[1765905977953,0.18420762,87410.0,87409.0,0.07635802]
[1765905978544,0.18320762,87410.0,87409.0,0.07635802]
[1765905979251,0.24553762,87410.0,87409.0,0.01103802]
[1765905979754,0.24553762,87410.0,87409.0,0.04342802]
[1765905980556,0.18320762,87410.0,87409.0,0.07635802]
[1765905981260,0.18320762,87410.0,87409.0,0.43715802]
[1765905981443,0.11406284,87410.0,87409.0,0.83715802]
[1765905981756,0.03990794,87410.0,87409.0,0.83715802]
[1765905981954,0.00017156,87418.0,87417.0,0.0114419]
[1765905982148,0.00017156,87418.0,87417.0,0.3722419]
[1765905983454,0.00117156,87418.0,87417.0,0.3722419]
[1765905984161,0.00117156,87418.0,87417.0,0.3742419]
[1765905991453,0.06350156,87418.0,87417.0,0.3742419]
[1765905991758,0.06350156,87418.0,87417.0,0.0134419]
[1765905992662,0.07494336,87418.0,87417.0,0.0134419]
[1765905993258,0.06350156,87418.0,87417.0,0.0134419]
[1765905995266,0.08800747,87418.0,87417.0,0.0134419]
[1765905995868,0.00117156,87418.0,87417.0,0.0134419]
[1765905997264,0.00117156,87418.0,87417.0,0.4134419]
[1765905999365,0.00017156,87418.0,87417.0,0.4134419]
[1765906000470,0.00017156,87418.0,87417.0,0.7313219]
[1765906000768,0.00017156,87426.0,87425.0,0.0114408]
[1765906000984,0.00017156,87426.0,87425.0,0.3722408]
[1765906002073,0.01871,87440.0,87439.0,0.011439]
[1765906002270,0.05442,87450.0,87449.0,0.0114377]
[1765906002467,0.11242915,87450.0,87449.0,0.0114377]
[1765906002967,0.01871,87450.0,87449.0,0.02307295]
[1765906003468,0.08793,87450.0,87449.0,0.0114377]
[1765906003772,0.08793,87450.0,87449.0,0.001]
[1765906005270,0.01871,87450.0,87449.0,0.001]
[1765906005657,0.01871,87450.0,87449.0,0.0134377]
[1765906005863,0.1003676,87450.0,87449.0,0.002]
[1765906006066,0.08893,87450.0,87449.0,0.002]
[1765906006268,0.06922,87449.0,87448.0,0.0114378]
[1765906006858,0.01871,87450.0,87449.0,0.001]
[1765906007059,0.01871,87450.0,87449.0,1.08004]
[1765906007262,0.07167839,87458.0,87457.0,0.0114367]
[1765906008370,0.00245839,87458.0,87457.0,0.3722367]
[1765906008871,0.07167839,87458.0,87457.0,0.3722367]
[1765906009075,0.07267839,87458.0,87457.0,0.3722367]
[1765906009572,0.07267839,87458.0,87457.0,0.0134367]
[1765906009767,0.07167839,87458.0,87457.0,0.3742367]
[1765906009964,0.00245839,87458.0,87457.0,0.3752367]
[1765906010165,0.00245839,87458.0,87457.0,0.3742367]
[1765906010361,0.07167839,87458.0,87457.0,0.3742367]
[1765906011373,0.07167839,87458.0,87457.0,0.3732367]
[1765906011876,0.07167839,87458.0,87441.0,0.06174217]
[1765906011877,0.06922,87442.0,87441.0,0.01161026]
[1765906012975,0.06922,87442.0,87441.0,0.01361026]
[1765906013177,0.06922,87442.0,87441.0,0.01461026]
[1765906013765,0.06922,87442.0,87441.0,0.01361026]
[1765906014472,0.06922,87442.0,87441.0,0.01161026]
[1765906014672,0.07022,87442.0,87441.0,0.01161026]
[1765906015273,0.06922,87442.0,87441.0,0.00017156]
[1765906015571,0.07022,87442.0,87441.0,0.00017156]
[1765906017572,0.06922,87442.0,87441.0,0.00017156]
[1765906017783,0.07022,87442.0,87441.0,0.00017156]
[1765906018873,0.06922,87434.0,87433.0,0.0114398]
[1765906019879,0.01953,87440.0,87425.0,0.03359156]
[1765906020078,0.0806599,87432.0,87431.0,0.01144]
[1765906020276,0.06922,87426.0,87425.0,0.00017156]
[1765906021082,0.43002,87426.0,87425.0,0.00017156]
[1765906021580,0.43002,87426.0,87425.0,0.00117156]
[1765906022285,0.43002,87426.0,87425.0,1.56e-06]
[1765906022786,0.45448485,87426.0,87425.0,0.00100156]
[1765906023497,0.08875,87410.0,87403.0,1.07896]
[1765906023685,0.08875,87410.0,87409.0,0.07785802]
[1765906024572,0.08875,87410.0,87409.0,0.01003802]
[1765906025576,0.1011928,87410.0,87409.0,0.01103802]
[1765906025772,0.08975,87410.0,87409.0,0.01103802]
[1765906026178,0.06685,87402.0,87401.0,0.4108]
[1765906026374,0.0782939,87402.0,87401.0,0.4108]
[1765906027186,0.0782939,87402.0,87401.0,0.05]
[1765906027385,0.0792939,87402.0,87401.0,0.053]
[1765906027575,0.4400939,87402.0,87401.0,0.053]
[1765906028191,0.4410939,87402.0,87401.0,0.053]
[1765906029088,0.0782959,87386.0,87378.0,0.00228892]
[1765906029285,0.06685,87379.0,87378.0,0.01373592]
[1765906029792,0.06685,87379.0,87378.0,0.08313592]
[1765906030087,0.06685,87379.0,87378.0,0.07168892]
[1765906030388,0.06685,87379.0,87378.0,0.07668892]
[1765906030689,0.06685,87379.0,87378.0,0.04363892]
[1765906031186,0.06785,87379.0,87378.0,0.07568892]
[1765906031383,0.06885,87379.0,87378.0,0.07568892]
[1765906032486,0.06885,87379.0,87378.0,0.00628892]
[1765906032685,0.0782995,87359.0,87349.0,0.3608]
[1765906032886,0.0782995,87359.0,87357.0,0.01141176]
[1765906032887,0.06385,87359.0,87357.0,0.01141176]
[1765906033096,0.06385,87359.0,87358.0,0.1194]
[1765906033394,0.06385,87359.0,87358.0,0.05]
[1765906033692,0.06385,87359.0,87358.0,0.02486886]
[1765906033888,0.06394882,87359.0,87358.0,0.02486886]
[1765906034482,0.06494882,87359.0,87358.0,0.02786886]
[1765906034992,0.06594882,87359.0,87358.0,0.06421886]
[1765906035192,0.03276882,87359.0,87358.0,0.10871846]
[1765906035387,0.00209882,87359.0,87358.0,0.10871846]
[1765906037490,0.03576882,87359.0,87358.0,0.81590886]
[1765906037793,0.06894882,87359.0,87358.0,0.09726886]
[1765906038288,0.06894882,87359.0,87358.0,0.06421886]
[1765906038503,0.06894882,87359.0,87358.0,0.02786886]
[1765906039196,0.06894882,87359.0,87358.0,0.09726886]
[1765906039400,0.06894882,87359.0,87358.0,0.02786886]
[1765906041799,0.06894882,87359.0,87358.0,0.10871846]
[1765906041986,0.06894882,87359.0,87358.0,0.09726886]
[1765906042185,0.42974882,87359.0,87358.0,0.02786886]
[1765906043697,0.42974882,87359.0,87358.0,0.00433946]
[1765906045496,0.42974882,87359.0,87358.0,0.00133946]
[1765906045690,0.078302,87340.0,87339.0,0.047802]
[1765906046092,0.06685,87339.0,87338.0,0.00228997]
[1765906046294,0.06694264,87339.0,87338.0,0.00228997]
[1765906046692,0.06694264,87339.0,87338.0,0.01374217]
[1765906046893,0.06694264,87339.0,87338.0,0.00228997]
[1765906047392,0.06694264,87339.0,87338.0,0.07168997]
[1765906047393,9.264e-05,87339.0,87338.0,0.07168997]
[1765906047587,0.03376264,87339.0,87338.0,0.07168997]
[1765906047888,9.264e-05,87339.0,87338.0,0.07168997]
[1765906049096,0.00017166,87348.0,87347.0,0.0808511]
[1765906049296,0.06702166,87348.0,87347.0,0.4416511]
[1765906049603,0.06702166,87348.0,87338.0,0.07168997]
[1765906049604,0.06685,87339.0,87338.0,0.07168997]
[1765906049999,0.06685,87345.0,87344.0,0.0808514]
[1765906050202,0.03367,87345.0,87344.0,0.0808514]
[1765906050397,0.36097166,87348.0,87347.0,0.0808511]
[1765906051309,0.36297166,87348.0,87347.0,0.0808511]
[1765906051605,0.00217166,87348.0,87347.0,0.0808511]
[1765906052011,0.06902166,87348.0,87347.0,0.0808511]
[1765906053012,0.03584166,87348.0,87347.0,0.0808511]
[1765906053313,0.06902166,87348.0,87347.0,0.0808511]
[1765906054505,0.06902166,87348.0,87347.0,0.0694]
[1765906055104,0.06902166,87348.0,87338.0,0.08368997]
[1765906055105,0.0942221,87339.0,87338.0,0.08368997]
[1765906055502,0.0942221,87339.0,87338.0,0.04301997]
[1765906055802,0.0942221,87339.0,87316.0,0.08150698]
[1765906055803,0.04171,87317.0,87316.0,0.08150698]
[1765906056008,0.08277,87317.0,87316.0,0.00010698]
[1765906056507,0.0114548,87319.0,87318.0,0.0814]
[1765906056508,0.0531648,87319.0,87318.0,0.0814]
[1765906056702,0.0942248,87319.0,87318.0,0.0814]
[1765906056905,0.08277,87319.0,87318.0,0.0814]
[1765906057404,0.04171,87319.0,87318.0,0.0814]
[1765906057600,0.40251,87323.0,87322.0,0.0814]
[1765906057808,0.4550242,87323.0,87322.0,0.0814]
[1765906058398,0.47979597,87323.0,87322.0,0.0814]
[1765906058706,0.48079597,87323.0,87322.0,0.0814]
[1765906058902,0.48379597,87323.0,87322.0,0.0814]
[1765906059103,0.08277,87317.0,87316.0,0.08150698]
[1765906059305,0.08277,87317.0,87316.0,0.00010698]
[1765906060298,0.0942253,87315.0,87314.0,0.0814]
[1765906060500,0.04171,87321.0,87320.0,0.10408]
[1765906060696,0.08277,87321.0,87320.0,0.10408]
[1765906060895,0.08277,87321.0,87320.0,0.0814]
[1765906061097,0.08277,87321.0,87320.0,0.04073]
[1765906061296,0.08288316,87321.0,87320.0,0.04073]
[1765906061498,0.08288316,87321.0,87320.0,0.0814]
[1765906061710,0.08388316,87321.0,87320.0,0.0814]
[1765906061903,0.08688316,87321.0,87320.0,0.0814]
[1765906062605,0.00411316,87321.0,87320.0,0.10408]
[1765906062905,0.00017176,87325.0,87324.0,0.0928541]
[1765906063202,1.76e-06,87325.0,87324.0,0.4536541]
[1765906064297,0.00100176,87325.0,87324.0,0.4536541]
[1765906064706,1.76e-06,87325.0,87324.0,0.4536541]
[1765906064906,0.00200176,87325.0,87324.0,0.4536541]
[1765906065293,0.00100176,87325.0,87324.0,0.4536541]
[1765906067202,0.08377176,87325.0,87324.0,0.0814]
[1765906067508,0.04271176,87325.0,87324.0,0.0814]
[1765906067706,0.00100176,87325.0,87324.0,0.0814]
[1765906068003,0.00100176,87325.0,87324.0,0.4422]
[1765906068402,0.04171,87339.0,87338.0,0.0928522]
[1765906068603,0.06648922,87339.0,87338.0,0.0928522]
[1765906068803,0.10754922,87339.0,87338.0,0.0814]
[1765906069206,0.02477922,87339.0,87338.0,0.0814]
[1765906070210,0.04188176,87347.0,87346.0,0.0814]
[1765906070410,0.10772558,87347.0,87346.0,0.0814]
[1765906070614,0.02495558,87347.0,87346.0,0.0814]
[1765906071203,0.10772558,87347.0,87346.0,0.0814]
[1765906071605,0.10872558,87347.0,87346.0,0.0814]
[1765906071806,0.02895558,87347.0,87346.0,0.0814]
[1765906072008,0.04588176,87347.0,87346.0,0.0814]
[1765906072213,0.07068081,87347.0,87346.0,0.0814]
[1765906072411,0.00417176,87347.0,87346.0,0.0814]
[1765906072914,0.04588176,87347.0,87346.0,0.0814]
[1765906073115,0.04488176,87347.0,87346.0,0.0814]
[1765906073415,0.04388176,87347.0,87346.0,0.0814]
[1765906073605,0.08494176,87347.0,87346.0,0.0814]
[1765906073806,0.00217176,87347.0,87346.0,0.0814]
[1765906074114,0.00017176,87347.0,87346.0,0.0814]
[1765906074314,0.00117176,87347.0,87346.0,0.0814]
[1765906075715,0.08277,87358.0,87357.0,0.0928497]
[1765906075905,0.3608,87366.0,87357.0,0.0928497]
[1765906075906,0.3608,87366.0,87365.0,0.0928487]
[1765906076210,0.46841759,87366.0,87365.0,0.0928487]
[1765906076404,0.46841759,87366.0,87365.0,0.0814]
[1765906077113,0.0942196,87358.0,87357.0,0.04090176]
[1765906077313,0.0942196,87358.0,87357.0,0.00017176]
[1765906077821,0.4550196,87358.0,87357.0,0.00017176]
[1765906079219,0.4580196,87358.0,87357.0,0.00117176]
[1765906079409,0.4580196,87358.0,87357.0,0.08257176]
[1765906079612,0.4590196,87358.0,87357.0,0.04190176]
[1765906079810,0.4590196,87358.0,87357.0,0.00117176]
[1765906080215,0.4590196,87358.0,87357.0,0.08257176]
[1765906080614,0.4590196,87358.0,87357.0,0.00117176]
[1765906081216,0.08677,87358.0,87357.0,0.04190176]
[1765906081426,0.004,87358.0,87357.0,0.08257176]
[1765906081609,0.3608,87384.0,87373.0,0.0928477]
[1765906081815,0.3608,87391.0,87377.0,0.0928471]
[1765906082009,0.08277,87391.0,87390.0,0.0814]
[1765906082219,0.08277,87374.0,87373.0,1.04632]
[1765906082408,0.3722463,87384.0,87373.0,1.04632]
[1765906082614,0.08277,87384.0,87383.0,0.0928463]
[1765906082918,0.0114452,87392.0,87391.0,0.0814]
[1765906082919,0.08294166,87392.0,87391.0,0.0814]
[1765906083325,0.09438686,87392.0,87391.0,0.0814]
[1765906083511,0.08277,87382.0,87381.0,0.3608]
[1765906083710,0.01789,87390.0,87375.0,0.00017166]
[1765906083711,0.08001,87376.0,87375.0,0.07694166]
[1765906084718,0.04171,87376.0,87375.0,0.07694166]
[1765906084921,0.0861067,87381.0,87380.0,0.07677]
[1765906085619,0.0861067,87381.0,87380.0,0.03931]
[1765906085816,0.0861067,87381.0,87380.0,0.07677]
[1765906086021,0.00117166,87392.0,87391.0,0.07677]
[1765906086221,0.00117166,87392.0,87391.0,0.43757]
[1765906086413,0.07583166,87392.0,87391.0,0.43757]
[1765906086611,0.00017166,87392.0,87391.0,0.4490153]
[1765906087220,0.0861034,87406.0,87405.0,0.03931]
[1765906087523,0.0861034,87406.0,87405.0,0.07677]
[1765906087717,0.0861042,87400.0,87399.0,0.07677]
[1765906087923,0.03636,87397.0,87396.0,0.07677]
[1765906089122,0.07466,87404.0,87403.0,0.07677]
[1765906089822,0.01161526,87405.0,87404.0,0.07677]
[1765906090017,0.03653166,87405.0,87404.0,0.07677]
[1765906090518,0.03653166,87405.0,87404.0,0.0882136]
[1765906091218,0.03753166,87405.0,87404.0,0.0882136]
[1765906091414,0.00117166,87405.0,87404.0,0.0882136]
[1765906092022,0.00217166,87405.0,87404.0,0.0882136]
[1765906092523,0.00117166,87405.0,87404.0,0.0902136]
[1765906092926,0.00117166,87405.0,87404.0,0.07877]
[1765906092927,0.07583166,87405.0,87404.0,0.07877]
[1765906093125,0.07466,87401.0,87400.0,0.03931]
[1765906093518,0.03636,87392.0,87391.0,0.4490153]
[1765906094119,0.03636,87397.0,87396.0,0.0882146]
[1765906094320,0.07466,87397.0,87396.0,0.07677]
[1765906094631,0.0348942,87400.0,87391.0,0.3608]
[1765906094632,0.07466,87396.0,87395.0,0.0882147]
[1765906095342,0.07466,87392.0,87391.0,0.3608]
[1765906095522,0.07466,87392.0,87391.0,0.40011]
[1765906095723,0.03636,87392.0,87391.0,0.43757]
[1765906095932,0.07466,87396.0,87395.0,0.07677]
[1765906096228,0.07466,87396.0,87395.0,0.001]
[1765906096634,0.0861056,87389.0,87388.0,0.00017166]
[1765906097035,0.4469056,87389.0,87388.0,0.00017166]
[1765906097224,0.0861056,87389.0,87388.0,0.00017166]
[1765906097426,0.8469056,87389.0,87388.0,0.00017166]
[1765906098224,0.110018,87370.0,87369.0,0.3608]
[1765906098535,0.07466,87361.0,87360.0,0.0507593]
[1765906098930,0.07466,87361.0,87360.0,0.4115593]
[1765906099125,0.07466,87361.0,87360.0,0.3608]
[1765906099330,0.07466,87361.0,87351.0,0.3608]
[1765906099331,0.07466,87353.0,87352.0,0.00017166]
[1765906099630,0.07466,87353.0,87352.0,0.07694166]
[1765906100239,0.07466,87353.0,87352.0,0.00017166]
[1765906100534,0.07466,87353.0,87352.0,0.08839206]
[1765906100738,0.07566,87353.0,87352.0,0.07994166]
[1765906102029,0.07666,87353.0,87352.0,0.08194166]
[1765906102436,0.07666,87353.0,87352.0,0.09339206]
[1765906103425,0.07666,87353.0,87352.0,0.08194166]
[1765906103833,0.03836,87353.0,87352.0,0.08194166]
[1765906104337,0.07666,87353.0,87352.0,0.08194166]
[1765906105828,0.03836,87353.0,87352.0,0.08194166]
[1765906107639,0.002,87353.0,87352.0,0.08194166]
[1765906110032,0.07666,87353.0,87352.0,0.00517166]
[1765906110233,0.07666,87353.0,87352.0,0.04448166]
[1765906110530,0.002,87353.0,87352.0,0.08194166]
[1765906111438,0.07483166,87369.0,87368.0,0.07677]
[1765906111638,0.00017166,87369.0,87368.0,0.07677]
[1765906113529,0.3608,87380.0,87379.0,0.07677]
[1765906113729,0.0836456,87389.0,87383.0,0.0114463]
[1765906113929,0.1189056,87389.0,87388.0,0.07317]
[1765906114133,0.07136,87383.0,87382.0,0.43397]
[1765906114336,0.07193,87374.0,87373.0,0.3608]
[1765906114732,0.07193,87374.0,87373.0,0.07356]
[1765906114935,0.07193,87369.0,87368.0,0.07356]
[1765906115250,0.02078,87380.0,87379.0,0.07356]
[1765906115251,0.001,87380.0,87379.0,0.07356]
[1765906115442,0.07293,87380.0,87379.0,0.07356]
[1765906115844,0.03732,87380.0,87379.0,0.07356]
[1765906116046,0.03632,87380.0,87379.0,0.07356]
[1765906116645,0.07193,87380.0,87379.0,0.07356]
[1765906116846,0.07293,87380.0,87379.0,0.07356]
[1765906117840,0.07293,87380.0,87379.0,0.07456]
[1765906119444,0.07293,87380.0,87379.0,0.0378]
[1765906120047,0.03732,87380.0,87379.0,0.07456]
[1765906120352,0.07293,87380.0,87379.0,0.07456]
[1765906121245,0.001,87380.0,87379.0,0.07456]
[1765906123047,0.07293,87380.0,87379.0,0.07456]
[1765906123248,0.001,87380.0,87379.0,0.07456]
[1765906124747,0.03732,87380.0,87379.0,0.07456]
[1765906125153,0.001,87380.0,87379.0,0.07456]
[1765906125557,0.03732,87380.0,87379.0,0.07456]
[1765906125855,0.07293,87380.0,87379.0,0.07456]
[1765906126059,0.0843767,87380.0,87379.0,0.07456]
[1765906126456,0.0843767,87380.0,87379.0,0.001]
[1765906127052,0.0843767,87380.0,87379.0,0.07456]
[1765906127646,0.0843767,87380.0,87379.0,0.001]
[1765906127842,0.10951778,87380.0,87379.0,0.001]
[1765906129155,0.0833786,87366.0,87365.0,0.00017166]
[1765906130050,0.10851709,87366.0,87365.0,0.00017166]
[1765906130659,0.10951709,87366.0,87365.0,0.00317166]
[1765906131162,0.10951709,87366.0,87365.0,0.00517166]
[1765906133457,0.07293,87366.0,87365.0,0.07873166]
[1765906133652,0.09806487,87366.0,87365.0,0.07873166]
[1765906133856,0.07293,87366.0,87365.0,0.07873166]
[1765906134352,0.001,87366.0,87365.0,0.07873166]
[1765906135752,0.0114457,87388.0,87379.0,0.07356]
[1765906135955,0.02125,87390.0,87379.0,0.07356]
[1765906136156,0.02125,87390.0,87381.0,0.09427]
[1765906136157,0.38205,87390.0,87381.0,0.09427]
[1765906136352,0.07210166,87382.0,87381.0,0.09427]
[1765906136564,0.07193,87374.0,87373.0,0.3608]
[1765906136762,0.02125,87381.0,87365.0,0.06658056]
[1765906136763,0.07193,87366.0,87365.0,0.07873166]
[1765906137154,0.07193,87366.0,87365.0,0.07373166]
[1765906137752,0.0833775,87375.0,87374.0,0.0368]
[1765906137955,0.083378,87371.0,87370.0,0.0368]
[1765906138154,0.10851316,87371.0,87370.0,0.07356]
[1765906138656,0.07193,87366.0,87365.0,0.07673166]
[1765906138957,0.07193,87366.0,87365.0,0.07573166]
[1765906139148,0.07193,87366.0,87365.0,0.07373166]
[1765906139352,0.07193,87366.0,87365.0,0.07573166]
[1765906140363,0.07193,87366.0,87365.0,0.00317166]
[1765906141064,0.07193,87366.0,87365.0,0.03997166]
[1765906141662,0.38205,87372.0,87365.0,0.03997166]
[1765906141663,0.43273,87379.0,87378.0,0.07356]
[1765906141863,0.45786714,87379.0,87378.0,0.07356]
[1765906142967,0.09706714,87379.0,87378.0,0.07356]
[1765906143169,0.07193,87379.0,87378.0,0.07356]
[1765906143358,0.07193,87374.0,87373.0,0.0850075]
[1765906143554,0.104628,87370.0,87369.0,0.3608]
[1765906144665,0.07324,87366.0,87365.0,0.00017166]
[1765906145771,0.09836254,87366.0,87365.0,0.00017166]
[1765906146170,0.07324,87366.0,87365.0,0.07451166]
[1765906146873,0.09836019,87366.0,87365.0,0.00217166]
[1765906147070,0.45916019,87366.0,87365.0,0.00217166]
[1765906149475,0.07324,87366.0,87365.0,0.07551166]
[1765906150874,0.3608,87373.0,87372.0,0.0837878]
[1765906151171,0.07324,87379.0,87378.0,0.083787]
[1765906151372,0.07324,87379.0,87378.0,0.07234]
[1765906153476,0.09936037,87379.0,87378.0,0.07234]
[1765906154076,0.09836037,87379.0,87378.0,0.07334]
[1765906154374,0.09936037,87379.0,87378.0,0.07334]
[1765906155773,0.09936037,87379.0,87378.0,0.07234]
[1765906156875,0.09836037,87379.0,87378.0,0.07234]
[1765906157073,0.09936037,87379.0,87378.0,0.07234]
[1765906157276,0.07324,87370.0,87369.0,0.3608]
[1765906157472,0.09836037,87370.0,87369.0,0.3608]
[1765906157780,0.0846886,87366.0,87359.0,0.3608]
[1765906158073,0.10980897,87366.0,87359.0,0.3608]
[1765906158280,0.10980897,87366.0,87357.0,0.0114497]
[1765906158476,0.10980897,87366.0,87359.0,0.0114494]
[1765906159071,0.10980897,87366.0,87362.0,0.0114491]
[1765906159271,0.10980897,87366.0,87356.0,0.3722498]
[1765906159471,0.10980897,87366.0,87365.0,0.00217166]
[1765906159676,0.10980897,87366.0,87365.0,0.00317166]
[1765906161669,0.10980897,87366.0,87365.0,0.04002166]
[1765906161868,0.09836037,87366.0,87365.0,0.07551166]
[1765906162672,0.02512037,87366.0,87365.0,0.07551166]
[1765906162874,0.09836037,87366.0,87365.0,0.07551166]
[1765906163182,0.09836037,87366.0,87365.0,0.04002166]
[1765906163683,0.07324,87366.0,87365.0,0.04002166]
[1765906163884,0.43404,87366.0,87365.0,0.00317166]
[1765906164183,0.45917237,87366.0,87365.0,0.00317166]
[1765906166289,0.45917237,87366.0,87365.0,0.04002166]
[1765906166686,0.45917237,87366.0,87365.0,0.00317166]
[1765906167185,0.45917237,87366.0,87365.0,0.07551166]
[1765906167982,0.09837237,87366.0,87365.0,0.07551166]
[1765906168481,0.07324,87366.0,87365.0,0.07551166]
[1765906168680,0.11001283,87366.0,87365.0,0.07551166]
[1765906168879,0.11001283,87366.0,87365.0,0.00317166]
[1765906169286,0.11001283,87366.0,87365.0,0.07551166]
[1765906169591,0.11001283,87366.0,87365.0,0.00317166]
[1765906170092,0.11001283,87366.0,87365.0,0.07551166]
[1765906170294,0.11001283,87366.0,87365.0,0.04002166]
[1765906170491,0.11001283,87366.0,87365.0,0.07551166]
[1765906170793,0.11001283,87366.0,87365.0,0.00317166]
[1765906174900,0.11001283,87366.0,87365.0,0.03961166]
[1765906175091,0.11001283,87366.0,87365.0,0.07487166]
[1765906176187,0.11001283,87366.0,87365.0,0.00317166]
[1765906177993,0.0841186,87366.0,87365.0,0.07525166]
[1765906178301,0.10943378,87366.0,87365.0,0.00317166]
[1765906180001,0.10943378,87366.0,87365.0,0.03999166]
[1765906180403,0.10943378,87366.0,87365.0,0.07525166]
[1765906180605,0.07267,87373.0,87372.0,0.07208]
[1765906181503,0.0841176,87373.0,87372.0,0.07208]
[1765906182096,0.0841176,87373.0,87372.0,0.07308]
[1765906183194,0.07367,87373.0,87372.0,0.07308]
[1765906185793,0.001,87373.0,87372.0,0.07308]
[1765906185994,0.001,87373.0,87372.0,0.43388]
[1765906186506,0.00017166,87382.0,87381.0,0.0835266]
[1765906186700,0.00017166,87382.0,87381.0,0.4443266]
[1765906187003,0.43347,87396.0,87395.0,0.07208]
[1765906187306,0.45878908,87396.0,87395.0,0.07208]
[1765906188301,0.07267,87388.0,87387.0,0.08369746]
[1765906188617,0.43347,87396.0,87395.0,0.07208]
[1765906188805,0.46177736,87396.0,87395.0,0.07208]
[1765906189203,0.43647,87396.0,87395.0,0.07208]
[1765906189405,0.07567,87396.0,87395.0,0.07308]
[1765906190104,0.07267,87396.0,87395.0,0.07208]
[1765906190311,0.07367,87396.0,87395.0,0.07208]
[1765906191010,0.07467,87396.0,87395.0,0.07208]
[1765906191499,0.07367,87396.0,87395.0,0.07208]
[1765906191700,0.07367,87396.0,87395.0,0.07308]
[1765906192305,0.07367,87396.0,87395.0,0.001]
[1765906192708,0.09893476,87396.0,87395.0,0.001]
[1765906195210,0.09893476,87396.0,87387.0,0.00017166]
[1765906195211,0.07267,87388.0,87387.0,0.00017166]
[1765906195600,0.0841157,87388.0,87387.0,0.00017166]
[1765906195808,0.10937101,87388.0,87387.0,0.00017166]
[1765906196008,0.0841157,87388.0,87387.0,0.00017166]
[1765906196210,0.10907097,87388.0,87387.0,0.00017166]
[1765906197119,0.10907097,87388.0,87387.0,0.00117166]
[1765906197614,0.10907097,87388.0,87387.0,0.00317166]
[1765906198002,0.10907097,87388.0,87387.0,0.00117166]
[1765906198211,0.11107097,87388.0,87387.0,0.00117166]
[1765906198609,0.11307097,87388.0,87387.0,0.00117166]
[1765906200710,0.03536,87361.0,87360.0,0.09291]
[1765906200904,0.07267,87375.0,87374.0,0.0835275]
[1765906201099,0.07267,87384.0,87383.0,0.0835263]
[1765906201302,0.004,87388.0,87387.0,0.0835258]
[1765906201716,0.3608,87406.0,87405.0,0.0835235]
[1765906201717,0.43347,87406.0,87405.0,0.0835235]
[1765906202016,0.07267,87396.0,87395.0,0.0835247]
[1765906202804,0.07267,87396.0,87395.0,0.43288]
[1765906203017,0.07267,87396.0,87395.0,0.43388]
[1765906203514,0.39616,87406.0,87405.0,0.0835235]
[1765906203701,0.4211383,87406.0,87405.0,0.0835235]
[1765906203907,0.0603383,87406.0,87405.0,0.0835235]
[1765906204216,0.3608,87431.0,87405.0,0.0835235]
[1765906204217,0.3608,87442.0,87439.0,0.03596]
[1765906204414,0.3608,87448.0,87447.0,0.07319]
[1765906204612,0.07215,87448.0,87447.0,0.07319]
[1765906204808,0.00228683,87458.0,87443.0,0.3608]
[1765906204809,0.07215,87444.0,87443.0,0.3608]
[1765906205008,0.07215,87444.0,87443.0,0.39676]
[1765906205220,0.07215,87444.0,87443.0,0.03596]
[1765906205419,0.08526,87440.0,87439.0,0.03596]
[1765906205712,0.11018386,87440.0,87439.0,0.03596]
[1765906205922,0.002,87448.0,87439.0,0.03596]
[1765906205923,0.002,87448.0,87447.0,0.07319]
[1765906206107,0.002,87448.0,87447.0,0.084628]
[1765906206306,0.0114355,87466.0,87446.0,0.3608]
[1765906206307,0.0114355,87466.0,87451.0,0.0846274]
[1765906206513,0.37391,87470.0,87451.0,0.0846274]
[1765906206514,0.385345,87470.0,87451.0,0.0846274]
[1765906206711,0.0114367,87457.0,87451.0,0.07319]
[1765906206915,0.37391,87470.0,87451.0,0.07319]
[1765906207522,0.0114351,87469.0,87457.0,0.0846267]
[1765906207708,0.0114351,87469.0,87457.0,0.4454267]
[1765906208104,0.39855,87470.0,87469.0,0.03596]
[1765906208305,0.03775,87470.0,87469.0,0.07319]
[1765906208515,0.07215,87464.0,87463.0,0.50407]
[1765906208715,0.39855,87470.0,87469.0,0.03596]
[1765906208905,0.03775,87470.0,87469.0,0.07319]
[1765906209508,0.43306148,87478.0,87477.0,0.03596]
[1765906209709,0.43306148,87478.0,87477.0,0.07319]
[1765906210515,0.43306148,87478.0,87469.0,1.5]
[1765906210516,0.07215,87470.0,87469.0,1.5]
[1765906210720,0.07215,87470.0,87469.0,2.21896]
[1765906210922,0.40066148,87478.0,87477.0,0.03596]
[1765906211125,0.43506148,87478.0,87477.0,0.07319]